bitfinex-derivatives/quotes_SOLF0:USTF0_20250312
["timestamp","ask_amount","ask_price","bid_price","bid_amount"]
[1741785968284,45.0911,127.78,127.69,40.96]
[1741785968479,7.8289,127.76,127.73,7.83]
[1741785968687,4.1111,127.78,127.69,72.68674736]
[1741785968882,4.1111,127.78,127.7,8.3724]
[1741785969088,7.8277,127.78,127.75,7.8287]
[1741785969284,7.8597,127.79,127.71,31.72674736]
[1741785969485,0.05148668,127.78,127.75,0.05329353]
[1741785970188,40.96,127.77,127.75,9.353e-05]
[1741785970385,72.68674736,127.77,127.68,40.96]
[1741785970779,7.8308,127.73,127.69,7.8323]
[1741785970986,72.68674736,127.77,127.68,40.96]
[1741785971389,7.832,127.71,127.68,48.7934]
[1741785971691,72.68674736,127.77,127.68,40.96]
[1741785971890,0.05873301,127.71,127.68,41.00944764]
[1741785972087,7.8313,127.72,127.69,7.8327]
[1741785972283,0.05996457,127.71,127.69,7.8327]
[1741785972790,7.89156457,127.71,127.69,7.8327]
[1741785972985,0.05996457,127.71,127.68,41.01292913]
[1741785973187,7.8322,127.7,127.68,0.05292913]
[1741785973381,0.05996457,127.71,127.68,0.05292913]
[1741785973889,7.8322,127.7,127.68,0.05292913]
[1741785974083,0.05996457,127.71,127.68,7.88602913]
[1741785974289,0.05996457,127.71,127.68,0.05292913]
[1741785975790,7.8328,127.69,127.68,0.05292913]
[1741785976993,72.74671193,127.71,127.58,40.96]
[1741785977194,40.96,127.71,127.61,8.1601]
[1741785977491,7.8338,127.68,127.61,8.1601]
[1741785977690,7.8338,127.68,127.62,40.96]
[1741785978086,0.05342274,127.66,127.64,0.05233177]
[1741785978292,40.96,127.71,127.64,0.05233177]
[1741785978593,0.05026353,127.66,127.64,0.05233177]
[1741785978797,0.05730937,127.66,127.64,0.05233177]
[1741785979498,7.8315,127.72,127.64,0.05233177]
[1741785979693,4.0431,127.73,127.65,31.72674736]
[1741785979889,4.3228,127.75,127.66,40.96]
[1741785980088,7.8308,127.73,127.66,40.96]
[1741785980292,7.8308,127.73,127.68,7.8331]
[1741785980490,0.05469928,127.71,127.68,7.88339414]
[1741785981194,0.05469928,127.71,127.68,0.05029414]
[1741785981591,3.9531,127.77,127.68,31.7770415]
[1741785981789,7.8296,127.75,127.69,12.9857]
[1741785981987,10.32615701,127.79,127.71,31.72674736]
[1741785982193,10.32615701,127.79,127.74,7.8293]
[1741785982397,10.32615701,127.79,127.7,40.96]
[1741785982691,31.72674736,127.78,127.7,40.96]
[1741785982897,7.8302,127.74,127.73,0.05194657]
[1741785983394,0.05045489,127.76,127.73,0.05194657]
[1741785984097,7.8296,127.75,127.73,0.05194657]
[1741785984297,0.05045489,127.76,127.73,0.05194657]
[1741785984598,7.87925489,127.76,127.73,0.05194657]
[1741785984796,0.05045489,127.76,127.73,0.05194657]
[1741785985191,7.8298,127.74,127.73,0.05194657]
[1741785985592,0.05045489,127.76,127.73,0.05194657]
[1741785988195,0.05045489,127.76,127.73,7.88224657]
[1741785988396,0.05045489,127.76,127.73,0.05194657]
[1741785992507,0.05045489,127.76,127.75,7.8291]
[1741785993197,31.72674736,127.83,127.77,7.8275]
[1741785993399,53.2684,127.84,127.73,12.28124657]
[1741785993601,7.826,127.81,127.73,12.2293]
[1741785994098,12.3284,127.84,127.73,12.2293]
[1741785994303,0.05031753,127.78,127.76,0.05847732]
[1741785994506,7.8279,127.77,127.76,0.05847732]
[1741785994799,7.8279,127.77,127.75,0.05726578]
[1741785995001,0.05715037,127.78,127.75,0.05726578]
[1741785995400,0.05715037,127.78,127.76,40.94]
[1741785995601,7.8245,127.83,127.76,40.94]
[1741785995802,7.8245,127.83,127.76,72.66674736]
[1741785996002,7.8245,127.83,127.8,7.8258]
[1741785996302,7.8258,127.81,127.76,40.94]
[1741785996497,12.5326,127.88,127.8,7.8259]
[1741785996698,7.8243,127.83,127.8,7.8259]
[1741785996892,0.05593427,127.85,127.83,0.05224756]
[1741785997092,85.17934736,127.88,127.81,7.8251]
[1741785997298,0.05977498,127.85,127.76,72.66674736]
[1741785997596,85.17934736,127.88,127.79,7.8264]
[1741785997800,0.05140553,127.82,127.79,0.05114037]
[1741785998101,85.17934736,127.88,127.76,40.94]
[1741785998401,0.05592804,127.82,127.79,0.05856472]
[1741785998700,0.0581206,127.82,127.8,40.92]
[1741785998902,0.0581206,127.82,127.8,49.2013]
[1741785999906,0.0581206,127.82,127.8,57.0272]
[1741786000303,0.0581206,127.82,127.8,49.2013]
[1741786000805,0.0581206,127.82,127.81,7.8255]
[1741786001006,0.0581206,127.82,127.8,49.2013]
[1741786002308,0.0581206,127.82,127.81,7.8255]
[1741786003110,0.0581206,127.82,127.79,0.0512507]
[1741786003502,0.0581206,127.82,127.81,7.8255]
[1741786003708,0.0581206,127.82,127.79,0.0512507]
[1741786004016,0.0581206,127.82,127.8,7.8261]
[1741786004210,0.0581206,127.82,127.79,0.0512507]
[1741786004610,31.72674736,127.81,127.75,4.2822]
[1741786005113,7.827,127.79,127.76,7.8282]
[1741786005311,31.72674736,127.81,127.73,8.3541]
[1741786005608,7.8268,127.79,127.73,8.3541]
[1741786005814,0.05392453,127.78,127.76,0.05246419]
[1741786006217,7.88122453,127.78,127.76,0.05246419]
[1741786006511,0.05392453,127.78,127.76,0.05246419]
[1741786006708,0.05392453,127.78,127.76,7.88076419]
[1741786006908,0.05392453,127.78,127.76,0.05246419]
[1741786007311,0.05392453,127.78,127.77,7.8279]
[1741786007513,0.05392453,127.78,127.76,0.05246419]
[1741786007814,7.88132453,127.78,127.76,0.05246419]
[1741786008116,0.05392453,127.78,127.76,0.05246419]
[1741786008415,7.8279,127.77,127.76,0.05246419]
[1741786008910,0.05392453,127.78,127.76,0.05246419]
[1741786009518,0.05392453,127.78,127.77,7.8279]
[1741786010711,7.8239,127.84,127.8,7.826]
[1741786011015,8.2632,127.85,127.78,40.88]
[1741786011618,8.2632,127.85,127.75,48.8439]
[1741786011818,31.78449914,127.83,127.73,40.88]
[1741786012014,72.60674736,127.83,127.73,44.8454]
[1741786012218,40.88,127.83,127.73,44.8454]
[1741786012515,7.8259,127.81,127.77,7.8277]
[1741786012719,40.88,127.83,127.73,44.8454]
[1741786013019,0.05589692,127.79,127.77,0.0594207]
[1741786013422,7.8277,127.78,127.77,0.0594207]
[1741786014418,0.05589692,127.79,127.77,0.0594207]
[1741786014916,0.05589692,127.79,127.78,7.8273]
[1741786016121,7.8239,127.84,127.77,45.1237207]
[1741786016321,72.60674736,127.88,127.77,45.0643]
[1741786016518,7.8237,127.84,127.77,45.0643]
[1741786016821,31.72674736,127.88,127.79,7.8265]
[1741786017024,31.72674736,127.88,127.77,45.0643]
[1741786017319,0.05144293,127.82,127.81,7.8252]
[1741786017519,0.05144293,127.82,127.8,0.05983398]
[1741786017821,0.05144293,127.82,127.8,7.88563398]
[1741786018220,0.05144293,127.82,127.8,0.05983398]
[1741786019928,0.05144293,127.82,127.81,7.8255]
[1741786020416,0.05144293,127.82,127.8,0.05983398]
[1741786020721,12.3061,127.89,127.81,40.86]
[1741786020921,35.72144736,127.92,127.81,45.1548]
[1741786021219,31.72674736,127.9,127.81,40.86]
[1741786021421,44.9487,127.89,127.81,40.86]
[1741786021723,7.8234,127.85,127.84,0.05477279]
[1741786022016,0.0566234,127.86,127.84,0.05477279]
[1741786023622,0.0566234,127.86,127.84,7.87837279]
[1741786024118,7.8791234,127.86,127.84,0.05477279]
[1741786024622,0.0566234,127.86,127.84,0.05477279]
[1741786024822,7.823,127.85,127.84,0.05477279]
[1741786027219,0.0566234,127.86,127.84,0.05477279]
[1741786027718,7.823,127.85,127.84,0.05477279]
[1741786028720,0.0566234,127.86,127.84,0.05477279]
[1741786029224,7.823,127.85,127.84,0.05477279]
[1741786030020,7.8794234,127.86,127.84,0.05477279]
[1741786030630,7.823,127.85,127.84,0.05477279]
[1741786030925,0.0566234,127.86,127.84,0.05477279]
[1741786031828,7.823,127.85,127.84,0.05477279]
[1741786032128,0.0566234,127.86,127.84,0.05477279]
[1741786032327,7.8793234,127.86,127.84,0.05477279]
[1741786032816,0.0566234,127.86,127.84,0.05477279]
[1741786033017,7.8795234,127.86,127.84,0.05477279]
[1741786033524,0.0566234,127.86,127.84,0.05477279]
[1741786034530,0.0566234,127.86,127.84,7.87787279]
[1741786035028,0.0566234,127.86,127.85,7.823]
[1741786035930,3.9947,127.92,127.85,40.8]
[1741786036429,3.9947,127.92,127.87,7.8217]
[1741786036730,3.9947,127.92,127.85,45.0511]
[1741786036926,23.82640455,127.92,127.85,40.8]
[1741786037131,19.83170455,127.9,127.82,40.8]
[1741786037327,19.83170455,127.88,127.87,5.759e-05]
[1741786037523,19.83170455,127.88,127.81,8.2024]
[1741786038131,8.2608,127.89,127.81,8.2024]
[1741786038527,0.05254755,127.86,127.84,0.0581504]
[1741786038727,0.05254755,127.86,127.85,7.8229]
[1741786038927,3.9947,127.92,127.84,40.8381504]
[1741786039133,7.8209,127.89,127.85,7.8228]
[1741786039434,3.9947,127.92,127.84,40.78]
[1741786039629,31.72577043,127.91,127.82,3.9827]
[1741786039830,31.72577043,127.91,127.82,40.78]
[1741786040029,0.05739333,127.88,127.85,0.05100142]
[1741786040229,7.8224,127.86,127.85,0.05100142]
[1741786040425,8.4743,127.87,127.76,4.0723]
[1741786040634,35.89937043,127.85,127.76,4.0723]
[1741786040837,40.78,127.84,127.76,4.0723]
[1741786041234,7.8266,127.8,127.76,4.0723]
[1741786041435,40.78,127.84,127.76,4.0723]
[1741786041636,0.05938781,127.79,127.77,0.04983224]
[1741786041836,0.05938781,127.79,127.78,7.8273]
[1741786042041,40.78,127.84,127.77,0.04983224]
[1741786042346,0.05014949,127.8,127.77,0.04983224]
[1741786042933,0.05014949,127.8,127.79,7.8267]
[1741786043134,106.62169035,127.8,127.69,32.52075075]
[1741786043333,31.72577043,127.77,127.69,32.52075075]
[1741786043536,40.78,127.76,127.69,32.52075075]
[1741786043740,40.78,127.75,127.64,8.5472]
[1741786044038,48.6092,127.75,127.67,7.8341]
[1741786044237,48.6092,127.75,127.69,0.05444742]
[1741786044238,0.05526149,127.72,127.69,0.05444742]
[1741786044843,40.78,127.71,127.69,0.05444742]
[1741786047139,40.78,127.71,127.64,4.2407]
[1741786047353,7.8326,127.7,127.64,4.2407]
[1741786048349,0.0511559,127.68,127.66,0.05527932]
[1741786050851,0.0511559,127.68,127.67,7.8341]
[1741786051042,0.0511559,127.68,127.67,48.6141]
[1741786051253,31.72577043,127.78,127.7,7.8317]
[1741786051449,7.8287,127.76,127.7,7.8317]
[1741786051847,40.03027043,127.78,127.68,4.2734]
[1741786052352,31.78048369,127.74,127.72,0.05504052]
[1741786052653,31.78048369,127.74,127.65,8.2037]
[1741786052849,31.78048369,127.74,127.64,40.78]
[1741786052850,31.72577043,127.72,127.64,40.78]
[1741786053054,31.72577043,127.7,127.63,234.74]
[1741786053652,0.05094652,127.68,127.65,0.05536509]
[1741786054750,0.05094652,127.68,127.67,7.8341]
[1741786056152,40.78,127.74,127.66,40.78]
[1741786056347,72.50577043,127.74,127.66,40.78]
[1741786056547,7.8313,127.72,127.68,7.833]
[1741786057253,7.8313,127.72,127.69,0.05782278]
[1741786057254,0.05809597,127.71,127.69,0.05782278]
[1741786057455,0.05809597,127.71,127.69,7.89052278]
[1741786057657,0.05809597,127.71,127.69,0.05782278]
[1741786057956,0.05809597,127.71,127.7,7.8322]
[1741786058652,3.9862,127.77,127.73,7.83]
[1741786058955,7.8289,127.76,127.68,31.72577043]
[1741786059155,3.9862,127.77,127.73,7.83]
[1741786059456,3.9862,127.77,127.68,31.72577043]
[1741786059651,0.05411397,127.74,127.71,0.05356648]
[1741786059853,0.05411397,127.74,127.72,7.8307]
[1741786060054,0.05411397,127.74,127.71,0.05356648]
[1741786060646,7.8304,127.73,127.71,0.05356648]
[1741786061155,0.05411397,127.74,127.71,0.05356648]
[1741786062253,7.88421397,127.74,127.71,0.05356648]
[1741786062454,0.05411397,127.74,127.71,0.05356648]
[1741786062958,0.05411397,127.74,127.72,7.831]
[1741786063255,0.05411397,127.74,127.71,0.05356648]
[1741786063453,0.05411397,127.74,127.73,7.8304]
[1741786065457,7.827,127.79,127.71,40.12013691]
[1741786065659,8.4775,127.82,127.73,31.72577043]
[1741786065861,8.4775,127.82,127.74,40.76]
[1741786066051,7.8263,127.8,127.77,7.8278]
[1741786066251,8.4775,127.82,127.74,40.76]
[1741786066455,4.1838,127.85,127.75,31.72577043]
[1741786066660,0.05342393,127.79,127.77,0.05340306]
[1741786067060,12.0072,127.85,127.81,7.8251]
[1741786067251,12.0072,127.85,127.78,40.76]
[1741786067457,0.05798732,127.84,127.82,0.05297849]
[1741786068260,7.8242,127.83,127.82,0.05297849]
[1741786068656,0.05798732,127.84,127.82,0.05297849]
[1741786070757,7.88198732,127.84,127.82,0.05297849]
[1741786070958,0.05798732,127.84,127.82,0.05297849]
[1741786072363,0.05798732,127.84,127.77,8.6117]
[1741786072864,7.8263,127.8,127.72,40.74]
[1741786073162,44.789,127.84,127.73,35.91887043]
[1741786073659,0.05176562,127.8,127.77,0.04946789]
[1741786073862,0.05176562,127.8,127.78,7.827]
[1741786074262,0.05176562,127.8,127.77,0.04946789]
[1741786075466,0.05176562,127.8,127.78,7.8268]
[1741786075761,0.05176562,127.8,127.77,0.04946789]
[1741786075965,7.8267,127.79,127.77,0.04946789]
[1741786076165,0.05176562,127.8,127.77,0.04946789]
[1741786076668,7.827,127.79,127.77,0.04946789]
[1741786076858,0.05176562,127.8,127.77,0.04946789]
[1741786077364,0.05176562,127.8,127.77,7.87696789]
[1741786077564,0.05176562,127.8,127.77,0.04946789]
[1741786077765,7.87816562,127.8,127.77,0.04946789]
[1741786077962,0.05176562,127.8,127.77,0.04946789]
[1741786078361,0.05176562,127.8,127.78,7.827]
[1741786078573,0.05176562,127.8,127.77,0.04946789]
[1741786079065,7.87836562,127.8,127.77,0.04946789]
[1741786079370,0.05176562,127.8,127.77,0.04946789]
[1741786079573,0.05176562,127.8,127.78,7.827]
[1741786080265,0.05176562,127.8,127.77,0.04946789]
[1741786080468,72.42577043,127.79,127.72,8.1113]
[1741786080671,44.749,127.84,127.73,40.7]
[1741786080859,44.749,127.84,127.78,7.8273]
[1741786081266,44.749,127.84,127.73,40.7]
[1741786081561,0.05136076,127.8,127.77,0.05370134]
[1741786082370,72.47713119,127.8,127.71,234.94]
[1741786082565,72.42577043,127.8,127.71,234.94]
[1741786082866,4.1642,127.79,127.71,234.94]
[1741786083270,4.1642,127.79,127.71,242.7712]
[1741786083572,0.05582977,127.76,127.74,0.04978803]
[1741786083870,7.88462977,127.76,127.74,0.04978803]
[1741786084360,0.05582977,127.76,127.74,0.04978803]
[1741786084566,4.049,127.84,127.74,72.47555846]
[1741786084865,4.1971,127.83,127.74,40.7]
[1741786085165,7.8282,127.77,127.74,40.7]
[1741786085371,72.42577043,127.81,127.74,7.8296]
[1741786085571,72.42577043,127.81,127.71,275.64]
[1741786085771,0.05761635,127.79,127.76,0.05200062]
[1741786087570,31.78338678,127.79,127.76,0.05200062]
[1741786087870,31.78338678,127.79,127.71,234.94]
[1741786088068,31.72577043,127.77,127.67,48.8953]
[1741786088466,35.64607043,127.77,127.67,48.8953]
[1741786088672,35.64607043,127.77,127.7,7.8316]
[1741786088867,0.05948121,127.75,127.72,0.05258692]
[1741786089679,7.8304,127.74,127.72,0.05258692]
[1741786089867,0.05948121,127.75,127.72,0.05258692]
[1741786090675,7.88878121,127.75,127.72,0.05258692]
[1741786090973,0.05948121,127.75,127.72,0.05258692]
[1741786091270,7.88888121,127.75,127.72,0.05258692]
[1741786091476,0.05948121,127.75,127.72,0.05258692]
[1741786091876,7.88868121,127.75,127.72,7.88328692]
[1741786092073,0.05948121,127.75,127.72,7.88328692]
[1741786092573,0.05948121,127.75,127.72,0.05258692]
[1741786093377,7.88898121,127.75,127.72,0.05258692]
[1741786093578,0.05948121,127.75,127.72,0.05258692]
[1741786093873,7.88908121,127.75,127.72,0.05258692]
[1741786094279,7.88908121,127.75,127.72,7.88338692]
[1741786094473,0.05948121,127.75,127.72,0.05258692]
[1741786094781,0.05948121,127.75,127.73,7.8304]
[1741786094981,0.05948121,127.75,127.72,0.05258692]
[1741786095180,0.05948121,127.75,127.73,7.83]
[1741786095680,0.05948121,127.75,127.73,7.8299]
[1741786096181,0.05948121,127.75,127.73,7.8304]
[1741786096377,0.05948121,127.75,127.72,0.05258692]
[1741786096780,7.88868121,127.75,127.73,7.8301]
[1741786097081,0.05948121,127.75,127.72,0.05258692]
[1741786097271,7.88888121,127.75,127.72,0.05258692]
[1741786097682,0.05948121,127.75,127.72,0.05258692]
[1741786097871,0.05948121,127.75,127.73,7.8299]
[1741786098181,0.05948121,127.75,127.72,0.05258692]
[1741786098381,0.05948121,127.75,127.74,7.8298]
[1741786099383,0.05948121,127.75,127.73,7.8301]
[1741786099682,0.05948121,127.75,127.72,0.05258692]
[1741786100179,0.05948121,127.75,127.74,7.8298]
[1741786101181,0.05948121,127.75,127.72,0.05258692]
[1741786102488,7.88898121,127.75,127.72,7.88328692]
[1741786102785,0.05948121,127.75,127.72,0.05258692]
[1741786103185,7.8304,127.73,127.67,8.1953]
[1741786103489,7.8304,127.73,127.6,193.0]
[1741786103490,60.52427706,127.74,127.64,60.52427706]
[1741786103678,7.8319,127.71,127.67,7.8337]
[1741786103876,68.88777706,127.74,127.67,7.8337]
[1741786104080,68.88777706,127.74,127.64,60.52427706]
[1741786104278,68.88777706,127.74,127.66,12.0365]
[1741786104590,0.05253942,127.71,127.69,0.05737006]
[1741786104785,27.69647706,127.7,127.69,7.006e-05]
[1741786104987,68.33647706,127.7,127.69,7.006e-05]
[1741786106479,0.05253942,127.71,127.69,7.006e-05]
[1741786107080,7.8322,127.7,127.69,7.006e-05]
[1741786107679,68.33647706,127.7,127.69,7.006e-05]
[1741786108382,48.4722,127.7,127.69,7.006e-05]
[1741786109086,80.29316333,127.7,127.69,7.006e-05]
[1741786109292,79.09816333,127.7,127.6,4.1565]
[1741786109485,4.2296,127.69,127.6,4.1565]
[1741786109691,7.8356,127.65,127.61,7.8374]
[1741786110392,0.0581246,127.64,127.62,0.05170184]
[1741786110792,0.0581246,127.64,127.63,7.8365]
[1741786111095,76.75816333,127.7,127.62,31.87266517]
[1741786111096,44.9372,127.7,127.62,31.87266517]
[1741786111593,44.9372,127.7,127.63,8.3879]
[1741786111789,7.8335,127.68,127.65,7.8349]
[1741786112197,0.05721609,127.68,127.65,7.88487376]
[1741786112494,0.05721609,127.68,127.65,0.04997376]
[1741786113093,7.8344,127.67,127.65,0.04997376]
[1741786113298,0.05721609,127.68,127.65,0.04997376]
[1741786113498,7.8347,127.66,127.65,0.04997376]
[1741786115200,0.05721609,127.68,127.65,0.04997376]
[1741786115389,7.8344,127.67,127.65,0.04997376]
[1741786115590,0.05721609,127.68,127.65,0.04997376]
[1741786115795,7.8344,127.67,127.65,0.04997376]
[1741786116189,0.05721609,127.68,127.65,0.04997376]
[1741786116799,0.05721609,127.68,127.66,7.8343]
[1741786117197,0.05721609,127.68,127.65,0.04997376]
[1741786117398,0.05721609,127.68,127.67,7.8341]
[1741786117599,0.05721609,127.68,127.65,4.00827376]
[1741786118298,0.05721609,127.68,127.66,7.8344]
[1741786118495,0.05721609,127.68,127.65,4.00827376]
[1741786118898,7.89111609,127.68,127.65,4.00827376]
[1741786119096,0.05721609,127.68,127.65,4.00827376]
[1741786119298,0.05721609,127.68,127.65,0.04997376]
[1741786119500,7.8347,127.66,127.65,0.04997376]
[1741786119695,0.05721609,127.68,127.65,0.04997376]
[1741786121091,7.8344,127.67,127.65,0.04997376]
[1741786121291,0.05721609,127.68,127.65,0.04997376]
[1741786121697,0.05721609,127.68,127.65,7.88477376]
[1741786122304,7.89111609,127.68,127.65,0.04997376]
[1741786122497,0.05721609,127.68,127.65,0.04997376]
[1741786122697,7.8343,127.67,127.65,0.04997376]
[1741786122899,0.05721609,127.68,127.65,0.04997376]
[1741786123298,7.8341,127.67,127.65,0.04997376]
[1741786123803,7.8347,127.66,127.65,0.04997376]
[1741786124504,7.89091609,127.68,127.65,7.88517376]
[1741786124803,0.05721609,127.68,127.65,7.88517376]
[1741786125001,0.05721609,127.68,127.65,0.04997376]
[1741786125295,7.8347,127.66,127.65,0.04997376]
[1741786128700,0.05721609,127.68,127.65,0.04997376]
[1741786128902,7.8343,127.67,127.65,0.04997376]
[1741786129403,0.05721609,127.68,127.65,0.04997376]
[1741786130504,7.89091609,127.68,127.65,7.88507376]
[1741786130806,0.05721609,127.68,127.65,0.04997376]
[1741786133103,7.8347,127.67,127.65,0.04997376]
[1741786133305,0.05721609,127.68,127.65,0.04997376]
[1741786133706,7.8346,127.67,127.65,0.04997376]
[1741786134106,0.05721609,127.68,127.65,0.04997376]
[1741786134408,7.8341,127.67,127.65,0.04997376]
[1741786134706,0.05721609,127.68,127.65,0.04997376]
[1741786135204,7.8393,127.59,127.55,19.88976356]
[1741786135403,60.46976356,127.61,127.52,28.03846356]
[1741786135604,40.56,127.6,127.52,8.1487]
[1741786135905,19.88976356,127.59,127.52,8.1487]
[1741786136306,0.05585431,127.57,127.54,0.05508391]
[1741786136903,0.05585431,127.57,127.54,7.89668391]
[1741786137105,0.05585431,127.57,127.54,0.05508391]
[1741786138105,0.05585431,127.57,127.54,7.89678391]
[1741786138307,0.05585431,127.57,127.54,0.05508391]
[1741786138807,40.61585431,127.57,127.54,0.05508391]
[1741786139016,40.61585431,127.57,127.49,266.94788449]
[1741786139205,40.61585431,127.57,127.52,7.8427]
[1741786139206,7.8412,127.56,127.52,7.8427]
[1741786139602,4.1574,127.6,127.51,31.86788449]
[1741786139805,7.8399,127.58,127.51,31.86788449]
[1741786140006,0.05395831,127.57,127.54,0.05383835]
[1741786140911,0.05395831,127.57,127.55,7.8414]
[1741786141112,0.05395831,127.57,127.54,0.05383835]
[1741786141311,7.89455831,127.57,127.54,0.05383835]
[1741786142313,0.05395831,127.57,127.54,0.05383835]
[1741786143302,0.05395831,127.57,127.56,7.8408]
[1741786144007,40.10398449,127.66,127.59,7.8388]
[1741786144208,40.10398449,127.66,127.56,40.56]
[1741786144209,8.2361,127.66,127.56,40.56]
[1741786144511,7.8356,127.65,127.57,267.02788449]
[1741786144713,8.1912,127.71,127.61,31.86788449]
[1741786144904,8.1912,127.71,127.63,31.86788449]
[1741786145111,0.05113101,127.67,127.65,0.05853021]
[1741786145312,31.86788449,127.68,127.59,40.54]
[1741786145503,7.8363,127.64,127.59,40.54]
[1741786145706,7.8363,127.64,127.61,7.8377]
[1741786145901,7.8355,127.65,127.62,0.05441404]
[1741786146103,0.05238431,127.64,127.62,0.05441404]
[1741786147910,7.88868431,127.64,127.62,0.05441404]
[1741786148411,0.05238431,127.64,127.62,0.05441404]
[1741786149211,7.8365,127.63,127.62,0.05441404]
[1741786149407,31.9202688,127.64,127.57,235.16]
[1741786149613,4.282,127.63,127.57,235.16]
[1741786149809,8.4947,127.63,127.57,235.16]
[1741786150115,31.86788449,127.6,127.52,52.7071]
[1741786150311,31.86788449,127.6,127.53,7.8426]
[1741786150512,40.52,127.61,127.52,52.7071]
[1741786150712,0.05529559,127.58,127.55,0.05590907]
[1741786150907,7.8408,127.56,127.55,0.05590907]
[1741786151110,0.05529559,127.58,127.55,0.05590907]
[1741786151511,31.92318008,127.58,127.51,235.14]
[1741786151716,31.86788449,127.56,127.51,235.14]
[1741786152010,8.4188,127.57,127.51,235.14]
[1741786152513,7.8418,127.55,127.51,235.14]
[1741786152712,0.05269758,127.55,127.53,0.05808603]
[1741786153012,7.89449758,127.55,127.53,0.05808603]
[1741786153215,0.05269758,127.55,127.53,0.05808603]
[1741786154310,0.05269758,127.55,127.54,7.842]
[1741786155413,0.05269758,127.55,127.53,7.90028603]
[1741786155708,0.05269758,127.55,127.53,0.05808603]
[1741786158516,4.2782,127.63,127.54,31.86788449]
[1741786158717,7.8375,127.62,127.58,7.8392]
[1741786159213,12.1151,127.63,127.59,7.8386]
[1741786159414,12.1151,127.63,127.57,40.5]
[1741786159615,0.05481608,127.62,127.6,0.0589956]
[1741786159816,7.89231608,127.62,127.6,0.0589956]
[1741786160019,0.05481608,127.62,127.6,0.0589956]
[1741786160614,0.05481608,127.62,127.61,7.8377]
[1741786161016,3.9501,127.69,127.6,0.0589956]
[1741786161314,3.9501,127.69,127.61,40.5]
[1741786161725,3.9501,127.69,127.62,31.86788449]
[1741786162019,3.9501,127.69,127.61,40.5]
[1741786162223,7.88849255,127.67,127.64,0.05802925]
[1741786162422,0.05409255,127.67,127.64,0.05802925]
[1741786163717,7.8349,127.66,127.64,0.05802925]
[1741786164021,0.05409255,127.67,127.64,0.05802925]
[1741786164320,7.8352,127.66,127.64,0.05802925]
[1741786164519,0.05409255,127.67,127.64,0.05802925]
[1741786164820,0.05409255,127.67,127.64,7.89372925]
[1741786165022,0.05409255,127.67,127.64,0.05802925]
[1741786165522,0.05409255,127.67,127.64,7.89392925]
[1741786165817,0.05409255,127.67,127.64,0.05802925]
[1741786166413,7.88849255,127.67,127.64,0.05802925]
[1741786166618,0.05409255,127.67,127.64,0.05802925]
[1741786167023,7.8352,127.66,127.64,0.05802925]
[1741786167322,0.05409255,127.67,127.64,0.05802925]
[1741786168219,7.8353,127.65,127.64,0.05802925]
[1741786169419,7.8353,127.65,127.64,2.925e-05]
[1741786169621,40.46,127.65,127.58,4.2332]
[1741786169826,40.46,127.65,127.58,12.0727]
[1741786170025,40.46,127.65,127.58,4.2332]
[1741786170621,7.8387,127.6,127.55,72.32788449]
[1741786170923,40.46,127.65,127.56,7.8402]
[1741786171120,0.05948487,127.6,127.57,0.05470617]
[1741786171322,0.05948487,127.6,127.57,0.05611406]
[1741786174535,0.05948487,127.6,127.57,7.89601406]
[1741786175027,7.89818487,127.6,127.57,7.89601406]
[1741786175327,7.89818487,127.6,127.57,0.05611406]
[1741786175328,0.05948487,127.6,127.57,0.05611406]
[1741786177122,7.89828487,127.6,127.57,7.89601406]
[1741786177320,0.05948487,127.6,127.57,0.05611406]
[1741786177926,7.8393,127.59,127.57,0.05611406]
[1741786178228,0.05948487,127.6,127.57,0.05611406]
[1741786179024,0.05948487,127.6,127.57,8.05491406]
[1741786179231,40.42,127.68,127.58,31.86788449]
[1741786179531,40.42,127.69,127.59,40.42]
[1741786179727,31.86788449,127.68,127.59,40.42]
[1741786179933,40.42,127.69,127.59,40.42]
[1741786180135,7.836,127.64,127.61,7.8374]
[1741786180330,0.05695264,127.65,127.63,0.0501088]
[1741786180530,0.05695264,127.65,127.59,40.42]
[1741786180731,7.8359,127.64,127.63,0.05902895]
[1741786182034,0.05695264,127.65,127.63,0.05902895]
[1741786182231,0.05695264,127.65,127.63,7.89512895]
[1741786182432,0.05695264,127.65,127.63,0.05902895]
[1741786183230,7.8359,127.64,127.63,0.05902895]
[1741786183431,0.05695264,127.65,127.63,0.05902895]